fUST/lending_fUST_20250522
["ID","MTS","AMOUNT","RATE_DAILY","PERIOD"]
[361902249,1747877351444,-500.0,0.00020602,2]
[361902250,1747877351468,-500.0,0.00020602,2]
[361902251,1747877351493,-500.0,0.00020602,2]
[361902252,1747877351515,-500.0,0.00020602,2]
[361902253,1747877351537,-496.4781054,0.00020602,2]
[361902254,1747877351560,-500.0,0.00020602,2]
[361902255,1747877351582,-24167.54860488,0.00020603,2]
[361902256,1747877352091,-683.49771684,0.00020603,2]
[361902257,1747877352125,-48.95367828,0.00020603,2]
[361902258,1747877353160,-11498.88023701,0.0002092,2]
[361902259,1747877359907,644.37672172,0.00020711,2]
[361902260,1747877361118,-507.86901022,0.00020711,2]
[361902261,1747877361138,-242.88740319,0.0002092,2]
[361902262,1747877361159,-621.24358659,0.00021259,2]
[361902278,1747877432480,-300.0,0.0002071,2]
[361902279,1747877432490,-771.94092089,0.0002071,2]
[361902295,1747877438172,-428.05907911,0.0002071,2]
[361902298,1747877438184,-300.0,0.0002071,2]
[361902300,1747877438195,-500.0,0.00020711,21]
[361902302,1747877438207,-500.0,0.00020711,21]
[361902304,1747877438217,-9.51940652,0.00020711,21]
[361902309,1747877438260,-490.48059348,0.00020711,21]
[361902312,1747877438271,-500.0,0.00020711,21]
[361902314,1747877438282,-500.0,0.00020711,21]
[361902316,1747877438292,-500.0,0.00020711,21]
[361902318,1747877438303,-500.0,0.00020711,21]
[361902320,1747877438316,-500.0,0.00020711,21]
[361902322,1747877438327,-500.0,0.00020711,21]
[361902324,1747877438336,-587.73,0.00020711,21]
[361902326,1747877438347,-1000.0,0.00020899,3]
[361902327,1747877438357,-65.10120245,0.00021259,2]
[361902328,1747877438368,-84.41357963,0.00021259,2]
[361902329,1747877438381,-343.41600339,0.00021259,2]
[361902330,1747877438391,-258.999903,0.00021396,2]
[361902331,1747877438402,-412.29560855,0.000219,6]
[361902332,1747877438414,-36.34227863,0.000219,6]
[361902333,1747877438424,-371.08723493,0.00021916,2]
[361902334,1747877438434,-556.29036552,0.00021916,2]
[361902335,1747877438444,-59.55254445,0.00021917,2]
[361902336,1747877438460,-479.29080127,0.00021917,2]
[361902337,1747877438470,-430.0,0.00021917,2]
[361902338,1747877438481,-430.0,0.00021917,2]
[361902339,1747877438491,-430.0,0.00021917,2]
[361902340,1747877438502,-430.0,0.00021917,2]
[361902341,1747877438511,-525.23,0.00021917,2]
[361902342,1747877438522,-430.0,0.00021917,2]
[361902343,1747877438532,-430.0,0.00021917,2]
[361902344,1747877438543,-430.0,0.00021917,2]
[361902345,1747877438552,-470.0,0.00021917,2]
[361902346,1747877438565,-430.0,0.00021917,2]
[361902347,1747877438575,-244.43556902,0.00021917,2]
[361902348,1747877438587,-185.56443098,0.00021917,2]
[361902349,1747877438597,-470.0,0.00021917,2]
[361902350,1747877438607,-430.0,0.00021917,2]
[361902351,1747877438616,-430.0,0.00021917,2]
[361902352,1747877438626,-681.62588892,0.00021917,2]
[361902353,1747877438639,-422.31411108,0.00021917,2]
[361902354,1747877438648,-279.84,0.00021917,2]
[361902355,1747877438658,-205.55633649,0.00021917,2]
[361902356,1747877438690,-307.90366351,0.00021917,2]
[361902357,1747877438700,-648.65,0.00021917,2]
[361902358,1747877438709,-430.0,0.00021917,2]
[361902359,1747877438719,-430.0,0.00021917,2]
[361902360,1747877438729,-430.0,0.00021917,2]
[361902361,1747877438739,-430.0,0.00021917,2]
[361902362,1747877438749,-430.0,0.00021917,2]
[361902363,1747877438759,-702.33,0.00021917,2]
[361902364,1747877438769,-430.0,0.00021917,2]
[361902365,1747877438783,-430.0,0.00021917,2]
[361902366,1747877438793,-378.57,0.00021917,2]
[361902367,1747877438803,-430.0,0.00021917,2]
[361902368,1747877438814,-430.0,0.00021917,2]
[361902369,1747877438824,-430.0,0.00021917,2]
[361902370,1747877438834,-430.0,0.00021917,2]
[361902371,1747877438843,-430.0,0.00021917,2]
[361902372,1747877438854,-430.0,0.00021917,2]
[361902373,1747877438864,-430.0,0.00021917,2]
[361902374,1747877438875,-805.94,0.00021917,2]
[361902375,1747877438885,-430.0,0.00021917,2]
[361902376,1747877438894,-430.0,0.00021917,2]
[361902377,1747877438904,-430.0,0.00021917,2]
[361902378,1747877438914,-305.60516056,0.00021917,2]
[361902379,1747877438927,-209.17483944,0.00021917,2]
[361902380,1747877438937,-430.0,0.00021917,2]
[361902381,1747877438946,-167.16,0.00021917,2]
[361902382,1747877438956,-311.38,0.00021917,2]
[361902383,1747877438965,-887.29,0.00021917,2]
[361902384,1747877438975,-430.0,0.00021917,2]
[361902385,1747877438985,-500.0,0.00021917,2]
[361902386,1747877438994,-430.0,0.00021917,2]
[361902387,1747877439004,-430.0,0.00021917,2]
[361902388,1747877439013,-445.01415027,0.00021917,2]
[361902389,1747877439023,-436.49686544,0.00021917,2]
[361902390,1747877439033,-430.0,0.00021917,2]
[361902391,1747877439043,-401.98435187,0.00021917,2]
[361902392,1747877439053,-430.0,0.00021917,2]
[361902393,1747877439063,-281.76449779,0.00021917,2]
[361902394,1747877439073,-430.0,0.00021917,2]
[361902395,1747877439083,-440.22725516,0.00021917,2]
[361902396,1747877439093,-500.0,0.00021918,30]
[361902397,1747877439103,-500.0,0.00021918,10]
[361902398,1747877439113,-448.63788692,0.00022072,6]
[361902399,1747877439123,-430.0,0.0002219,2]
[361902400,1747877439133,-430.0,0.0002219,2]
[361902401,1747877439143,-350.0,0.0002219,2]
[361902402,1747877439152,-350.0,0.0002219,2]
[361902403,1747877439162,-430.0,0.0002219,2]
[361902404,1747877439172,-350.0,0.0002219,2]
[361902405,1747877439182,-350.0,0.0002219,2]
[361902406,1747877439191,-299.22984707,0.0002219,2]
[361902407,1747877439204,-430.0,0.0002219,2]
[361902408,1747877439214,-576.14,0.0002219,2]
[361902409,1747877439224,-659.56,0.0002219,2]
[361902410,1747877439234,-430.0,0.0002219,2]
[361902411,1747877439244,-430.0,0.0002219,2]
[361902412,1747877439254,-430.0,0.0002219,2]
[361902413,1747877439266,-430.0,0.00022191,2]
[361902414,1747877439276,-430.0,0.00022191,2]
[361902415,1747877439286,-430.0,0.00022191,2]
[361902416,1747877439296,-430.0,0.00022191,2]
[361902417,1747877439306,-430.0,0.00022191,2]
[361902418,1747877439317,-430.0,0.00022191,2]
[361902419,1747877439326,-430.0,0.00022191,2]
[361902420,1747877439335,-430.0,0.00022191,2]
[361902421,1747877439345,-430.0,0.00022191,2]
[361902422,1747877439354,-1103.94,0.00022191,2]
[361902423,1747877439364,-648.65,0.00022191,2]
[361902424,1747877439374,-430.0,0.00022191,2]
[361902425,1747877439385,-430.0,0.00022191,2]
[361902426,1747877439394,-430.0,0.00022191,2]
[361902427,1747877439407,-430.0,0.00022191,2]
[361902428,1747877439416,-430.0,0.00022191,2]
[361902429,1747877439425,-702.33,0.00022191,2]
[361902430,1747877439436,-430.0,0.00022191,2]
[361902431,1747877439447,-430.0,0.00022191,2]
[361902432,1747877439459,-268.48,0.00022191,2]
[361902433,1747877439468,-430.0,0.00022191,2]
[361902434,1747877439479,-430.0,0.00022191,2]
[361902435,1747877439489,-430.0,0.00022191,2]
[361902436,1747877439499,-805.94,0.00022191,2]
[361902437,1747877439509,-270.29,0.00022191,2]
[361902438,1747877439519,-430.0,0.00022191,2]
[361902439,1747877439529,-887.29,0.00022191,2]
[361902440,1747877439539,-430.0,0.00022191,2]
[361902441,1747877439549,-320.0,0.00022191,2]
[361902442,1747877439559,-430.0,0.00022191,2]
[361902443,1747877439570,-430.0,0.00022191,2]
[361902444,1747877439580,-430.0,0.00022191,2]
[361902445,1747877439591,-430.0,0.00022191,2]
[361902446,1747877439607,-448.63788692,0.00022245,6]
[361902447,1747877439617,-448.63788692,0.00022417,7]
[361902448,1747877439629,-430.0,0.00022464,2]
[361902449,1747877439646,-576.14,0.00022464,2]
[361902450,1747877439656,-659.56,0.00022464,2]
[361902451,1747877439667,-430.0,0.00022464,2]
[361902452,1747877439680,-151.0,0.00022465,7]
[361902453,1747877439690,-151.0,0.00022465,7]
[361902454,1747877439700,-151.0,0.00022465,7]
[361902455,1747877439710,-151.0,0.00022465,7]
[361902456,1747877439720,-151.0,0.00022465,7]
[361902457,1747877439731,-430.0,0.00022465,2]
[361902458,1747877439741,-430.0,0.00022465,2]
[361902459,1747877439751,-430.0,0.00022465,2]
[361902460,1747877439761,-430.0,0.00022465,2]
[361902462,1747877439772,-430.0,0.00022465,2]
[361902463,1747877439782,-430.0,0.00022465,2]
[361902464,1747877439792,-430.0,0.00022465,2]
[361902465,1747877439802,-430.0,0.00022465,2]
[361902467,1747877439812,-364.9,0.00022465,2]
[361902468,1747877439821,-1103.94,0.00022465,2]
[361902469,1747877439831,-648.65,0.00022465,2]
[361902470,1747877439841,-430.0,0.00022465,2]
[361902471,1747877439851,-430.0,0.00022465,2]
[361902472,1747877439862,-240.44,0.00022465,2]
[361902473,1747877439871,-474.95,0.00022465,2]
[361902474,1747877439881,-430.0,0.00022465,2]
[361902475,1747877439891,-702.33,0.00022465,2]
[361902476,1747877439900,-430.0,0.00022465,2]
[361902477,1747877439910,-430.0,0.00022465,2]
[361902478,1747877439920,-430.0,0.00022465,2]
[361902479,1747877439930,-430.0,0.00022465,2]
[361902480,1747877439940,-430.0,0.00022465,2]
[361902481,1747877439950,-805.94,0.00022465,2]
[361902482,1747877439960,-430.0,0.00022465,2]
[361902483,1747877439970,-887.29,0.00022465,2]
[361902484,1747877439979,-430.0,0.00022465,2]
[361902485,1747877439989,-430.0,0.00022465,2]
[361902486,1747877439999,-430.0,0.00022465,2]
[361902487,1747877440008,-430.0,0.00022465,2]
[361902488,1747877440018,-430.0,0.00022465,2]
[361902490,1747877440028,-500.0,0.00022489,2]
[361902492,1747877440037,-310.0,0.00022535,2]
[361902494,1747877440047,-420.0,0.00022535,2]
[361902496,1747877440057,-448.63788692,0.0002259,7]
[361902498,1747877440068,-5485.5987599,0.00022679,2]
[361902541,1747877440486,-377.0600867,0.00022679,2]
[361902542,1747877440499,-3903.35284522,0.00022679,2]
[361902543,1747877440508,-430.0,0.00022738,2]
[361902544,1747877440518,-576.14,0.00022738,2]
[361902545,1747877440530,-659.56,0.00022738,2]
[361902546,1747877440540,-430.0,0.00022738,2]
[361902547,1747877440550,-602.00691638,0.00022738,2]
[361902548,1747877440560,-500.0,0.00022738,2]
[361902549,1747877440571,-500.0,0.00022738,2]
[361902550,1747877440580,-329.9314838,0.00022738,2]
[361902551,1747877440590,-500.0,0.00022738,2]
[361902552,1747877440599,-151.0,0.00022739,7]
[361902553,1747877440609,-430.0,0.00022739,2]
[361902554,1747877440618,-430.0,0.00022739,2]
[361902555,1747877440628,-430.0,0.00022739,2]
[361902556,1747877440638,-430.0,0.00022739,2]
[361902557,1747877440649,-430.0,0.00022739,2]
[361902558,1747877440659,-1103.94,0.00022739,2]
[361902559,1747877440670,-648.65,0.00022739,2]
[361902560,1747877440679,-430.0,0.00022739,2]
[361902561,1747877440690,-430.0,0.00022739,2]
[361902562,1747877440711,-430.0,0.00022739,2]
[361902563,1747877440722,-702.33,0.00022739,2]
[361902564,1747877440732,-430.0,0.00022739,2]
[361902565,1747877440742,-154.05,0.00022739,2]
[361902566,1747877440752,-430.0,0.00022739,2]
[361902567,1747877440762,-430.0,0.00022739,2]
[361902568,1747877440772,-430.0,0.00022739,2]
[361902569,1747877440782,-425.87697437,0.00022739,2]
[361902570,1747877440795,-380.06302563,0.00022739,2]
[361902571,1747877440805,-430.0,0.00022739,2]
[361902572,1747877440816,-37.44354318,0.00022739,2]
[361902583,1747877443397,-929.98,0.00021917,2]
[361902584,1747877443407,-1009.99565206,0.00022191,2]
[361902589,1747877446385,-438.18681558,0.00021917,2]
[361902591,1747877446395,-492.73088117,0.00022191,2]
[361902592,1747877446482,-709.16309492,0.00022191,2]
[361902593,1747877446585,-1857.03293575,0.00022191,2]
[361902594,1747877446730,-1000.0,0.00022191,2]
[361902595,1747877489532,171.027921,0.00013699,2]
[361902612,1747878020403,-200.0,0.0002472,120]
[361902613,1747878020465,-22.6,0.0002472,120]
[361902614,1747878020495,-177.4,0.0002472,120]
[361902615,1747878020517,-22.6,0.0002472,120]
[361902616,1747878020578,-200.0,0.0002472,120]
[361902617,1747878020598,-3516.0,0.0002472,120]
[361902618,1747878020683,-150.5,0.0002473,120]
[361902619,1747878020710,-3716.0,0.0002473,120]
[361902620,1747878020770,-200.0,0.0002473,120]
[361902621,1747878020798,-150.5,0.0002474,120]
[361902622,1747878020830,-253.5,0.0002474,120]
[361902623,1747878020860,-167.2,0.0002474,120]
[361902624,1747878020926,-150.5,0.0002474,120]
[361902625,1747878020973,-1872.66826136,0.0002474,120]
[361902626,1747878021027,-200.0,0.0002474,120]
[361902627,1747878021092,-1692.83173864,0.0002474,120]
[361902628,1747878021118,-150.5,0.0002497,120]
[361902629,1747878021182,-253.5,0.0002497,120]
[361902630,1747878021202,-167.2,0.0002497,120]
[361902631,1747878021222,-1043.63173864,0.0002497,120]
[361902632,1747878021289,-2301.16826136,0.0002497,120]
[361902633,1747878021372,-200.0,0.0002498,120]
[361902634,1747878021414,-200.0,0.0002498,120]
[361902635,1747878021430,-200.0,0.0002498,120]
[361902636,1747878021445,-3316.0,0.0002498,120]
[361902637,1747878064321,1101.53652272,0.0002474,120]
[361902638,1747878093271,1958.0,0.00023786,120]
[361902639,1747878093728,1958.0,0.00023776,120]
[361902640,1747878094200,150.5,0.00023766,120]
[361902699,1747878330152,-1084.51904288,0.00019967,2]
[361902700,1747878441079,-256.28388226,0.00019967,2]
[361902701,1747878447106,-3436.76701017,0.00019967,2]
[361902702,1747878447127,-1000.0,0.0002,2]
[361902703,1747878447147,-186.0,0.00020699,2]
[361902704,1747878447166,-300.0,0.00020699,2]
[361902705,1747878447186,-1200.0,0.00020699,2]
[361902706,1747878447206,-300.0,0.00020699,2]
[361902707,1747878447227,-2253.16453101,0.000207,2]
[361902708,1747878550100,-693.44203662,0.00020493,2]
[361902709,1747878550120,-468.3434441,0.00020698,2]
[361902710,1747878550139,-3694.11682095,0.000207,2]
[361902711,1747878565216,-120.90626764,0.000207,2]
[361902712,1747878565239,-24369.61527747,0.00020916,2]
[361902713,1747878567144,-3073.05994054,0.00020493,2]
[361902714,1747878567165,-530.38472253,0.00020916,2]
[361902715,1747878567184,-284.99006503,0.00021259,2]
[361902716,1747878567204,-22.88329032,0.00021277,2]
[361902717,1747878603083,159.726775,0.00013699,2]
[361902748,1747878632338,-152.71689568,0.00021277,2]
[361902750,1747878632349,-3196.77559566,0.000219,2]
[361902752,1747878632359,-1655.01762942,0.000219,6]
[361902754,1747878632373,-1200.0,0.00021915,2]
[361902756,1747878632384,-367.4307372,0.00021916,2]
[361902758,1747878632395,-500.0,0.00021916,2]
[361902760,1747878632406,-500.0,0.00021916,2]
[361902761,1747878632417,-500.0,0.00021916,2]
[361902763,1747878632427,-500.0,0.00021916,2]
[361902765,1747878632440,-377.90482597,0.00021916,2]
[361902767,1747878632450,-500.0,0.00021916,2]
[361902769,1747878632461,-63888.31683733,0.00021917,3]
[361902771,1747878632472,-500.0,0.00021917,2]
[361902773,1747878632483,-447.42179083,0.00021917,2]
[361902775,1747878632494,-438.57687161,0.00021917,2]
[361902777,1747878632504,-473.6524885,0.00021917,2]
[361902780,1747878632514,-436.3955659,0.00021917,2]
[361902781,1747878632524,-418.4218042,0.00021917,2]
[361902784,1747878632535,-353.47981397,0.00021917,2]
[361902785,1747878632546,-410.83022871,0.00021917,2]
[361902788,1747878632555,-352.90979004,0.00021917,2]
[361902791,1747878632566,-354.15520111,0.00021917,2]
[361902793,1747878632575,-352.35347577,0.00021917,2]
[361902795,1747878632585,-345.84307356,0.00021917,2]
[361902797,1747878632595,-404.24759593,0.00021917,2]
[361902799,1747878632605,-430.75840787,0.00021917,2]
[361902802,1747878632614,-433.05423414,0.00021917,2]
[361902805,1747878632627,-430.0,0.00021917,2]
[361902807,1747878632638,-430.0,0.00021917,2]
[361902810,1747878632648,-455.08114114,0.00021917,2]
[361902813,1747878632658,-443.74177555,0.00021917,2]
[361902815,1747878632668,-531.2339283,0.00021917,2]
[361902817,1747878632678,-401.03837097,0.00021917,2]
[361902819,1747878632688,-507.63820759,0.00021917,2]
[361902821,1747878632698,-304.48033083,0.00021917,2]
[361902823,1747878632708,-430.0,0.00021917,2]
[361902825,1747878632718,-451.56549017,0.00021917,2]
[361902826,1747878632728,-435.19452318,0.00021917,2]
[361902828,1747878632738,-430.0,0.00021917,2]
[361902830,1747878632747,-431.8367798,0.00021917,2]
[361902832,1747878632756,-401.59090838,0.00021917,2]
[361902834,1747878632766,-443.44514391,0.00021917,2]
[361902836,1747878632775,-435.69946844,0.00021917,2]
[361902838,1747878632785,-433.67481995,0.00021917,2]
[361902839,1747878632796,-453.30696626,0.00021917,2]
[361902841,1747878632806,-447.55275585,0.00021917,2]
[361902843,1747878632816,-430.0,0.00021917,2]
[361902845,1747878632825,-352.06964852,0.00021917,2]
[361902847,1747878632835,-438.33116121,0.00021917,2]
[361902849,1747878632848,-432.93363744,0.00021917,2]
[361902851,1747878632857,-434.39471692,0.00021917,2]
[361902852,1747878632867,-434.44494975,0.00021917,2]
[361902854,1747878632881,-434.82786206,0.00021917,2]
[361902856,1747878632891,-430.0,0.00021917,2]
[361902858,1747878632901,-434.60493292,0.00021917,2]
[361902859,1747878632911,-283.64798031,0.00021917,2]
[361902861,1747878632923,-438.42068337,0.00021917,2]
[361902863,1747878632932,-291.50506108,0.00021917,2]
[361902864,1747878632942,-432.61855465,0.00021917,2]
[361902865,1747878632952,-430.0,0.00021917,2]
[361902866,1747878632961,-433.34182213,0.00021917,2]
[361902868,1747878632971,-432.80006626,0.00021917,2]
[361902870,1747878632981,-431.10405998,0.00021917,2]
[361902872,1747878632990,-430.0,0.00021917,2]
[361902874,1747878633000,-430.0,0.00021917,2]
[361902875,1747878633010,-506.6993511,0.00021917,2]
[361902877,1747878633021,-442.63627386,0.00021917,2]
[361902879,1747878633031,-430.0,0.00021917,2]
[361902881,1747878633041,-432.08043175,0.00021917,2]
[361902882,1747878633051,-431.90301694,0.00021917,2]
[361902884,1747878633062,-430.0,0.00021917,2]
[361902886,1747878633074,-435.13327904,0.00021917,2]
[361902887,1747878633084,-446.34124647,0.00021917,2]
[361902888,1747878633095,-528.20534806,0.00021917,2]
[361902889,1747878633105,-209.78510136,0.00021917,2]
[361902890,1747878633116,-430.0,0.00021917,2]
[361902891,1747878633128,-431.28180196,0.00021917,2]
[361902892,1747878633139,-431.86132687,0.00021917,2]
[361902893,1747878633149,-433.46941931,0.00021917,2]
[361902894,1747878633159,-435.49261104,0.00021917,2]
[361902895,1747878633169,-500.0,0.00021917,2]
[361902896,1747878633180,-433.80626687,0.00021917,2]
[361902897,1747878633190,-430.81184823,0.00021917,2]
[361902898,1747878633201,-441.11229941,0.00021917,2]
[361902899,1747878633211,-430.0,0.00021917,2]
[361902900,1747878633221,-430.0,0.00021917,2]
[361902901,1747878633231,-440.22032431,0.00021917,2]
[361902902,1747878633241,-502.06950763,0.00021917,2]
[361902903,1747878633251,-430.0,0.00021917,2]
[361902904,1747878633262,-688.4,0.00021917,2]
[361902905,1747878633271,-430.0,0.00021917,2]
[361902906,1747878633281,-320.15060926,0.00021917,2]
[361902907,1747878633292,-442.90474581,0.00021917,2]
[361902908,1747878633303,-430.0,0.00021917,2]
[361902909,1747878633314,-462.96886289,0.00021917,2]
[361902910,1747878633324,-430.0,0.00021917,2]
[361902911,1747878633335,-450.42,0.00021917,2]
[361902912,1747878633345,-441.98051487,0.00021917,2]
[361902913,1747878633356,-434.25987358,0.00021917,2]
[361902914,1747878633366,-451.37171369,0.00021917,2]
[361902915,1747878633379,-400.7282722,0.00021917,2]
[361902916,1747878633389,-430.0,0.00021917,2]
[361902917,1747878633399,-438.16308051,0.00021917,2]
[361902918,1747878633412,-437.30689766,0.00021917,2]
[361902919,1747878633424,-439.24193641,0.00021917,2]
[361902920,1747878633434,-441.47803147,0.00021917,2]
[361902921,1747878633444,-451.30726133,0.00021917,2]
[361902922,1747878633455,-443.90742715,0.00021917,2]
[361902923,1747878633465,-434.76965799,0.00021917,2]
[361902924,1747878633475,-430.0,0.00021917,2]
[361902925,1747878633486,-432.59076033,0.00021917,2]
[361902926,1747878633496,-430.0,0.00021917,2]
[361902927,1747878633506,-430.0,0.00021917,2]
[361902928,1747878633516,-440.29852995,0.00021917,2]
[361902929,1747878633527,-433.1200289,0.00021917,2]
[361902930,1747878633538,-336.8767639,0.00021917,2]
[361902931,1747878633548,-430.0,0.00021917,2]
[361902932,1747878633559,-1005.43485387,0.00021917,2]
[361902933,1747878633569,-438.26086939,0.00021917,2]
[361902934,1747878633580,-440.89130448,0.00021917,2]
[361902935,1747878633590,-401.79742204,0.00021917,2]
[361902936,1747878633601,-430.0,0.00021917,2]
[361902937,1747878633610,-442.10639498,0.00021917,2]
[361902938,1747878633621,-440.28555485,0.00021917,2]
[361902939,1747878633632,-430.0,0.00021917,2]
[361902940,1747878633642,-430.0,0.00021917,2]
[361902941,1747878633652,-522.35590888,0.00021917,2]
[361902942,1747878633662,-436.17944039,0.00021917,2]
[361902943,1747878633672,-430.0,0.00021917,2]
[361902945,1747878633682,-430.0,0.00021917,2]
[361902947,1747878633692,-430.0,0.00021917,2]
[361902948,1747878633703,-430.0,0.00021917,2]
[361902950,1747878633713,-440.41357296,0.00021917,2]
[361902952,1747878633722,-434.57421207,0.00021917,2]
[361902954,1747878633732,-462.25,0.00021917,2]
[361902955,1747878633743,-468.47025937,0.00021917,2]
[361902956,1747878633753,-431.82542395,0.00021917,2]
[361902957,1747878633764,-445.32372144,0.00021917,2]
[361902958,1747878633773,-430.0,0.00021917,2]
[361902959,1747878633783,-453.43497504,0.00021917,2]
[361902960,1747878633794,-430.0,0.00021917,2]
[361902961,1747878633804,-436.24617768,0.00021917,2]
[361902962,1747878633814,-442.29286163,0.00021917,2]
[361902963,1747878633824,-432.8729569,0.00021917,2]
[361902964,1747878633834,-430.0,0.00021917,2]
[361902965,1747878633844,-430.0,0.00021917,2]
[361902966,1747878633854,-430.0,0.00021917,2]
[361902967,1747878633865,-430.0,0.00021917,2]
[361902968,1747878633879,-430.0,0.00021917,2]
[361902969,1747878633891,-430.0,0.00021917,2]
[361902970,1747878633901,-431.89458059,0.00021917,2]
[361902971,1747878633912,-433.74782992,0.00021917,2]
[361902972,1747878633923,-279.34741542,0.00021917,2]
[361902973,1747878633934,-430.0,0.00021917,2]
[361902974,1747878633945,-1061.8,0.00021917,2]
[361902975,1747878633954,-154.372299,0.00021917,2]
[361902976,1747878633964,-436.90235036,0.00021917,2]
[361902977,1747878633974,-438.07284368,0.00021917,2]
[361902978,1747878633984,-430.0,0.00021917,2]
[361902979,1747878633994,-432.84448559,0.00021917,2]
[361902980,1747878634004,-501.07521463,0.00021917,2]
[361902981,1747878634014,-441.29783608,0.00021917,2]
[361902982,1747878634024,-553.33353277,0.00021917,2]
[361902983,1747878634034,-439.97136438,0.00021917,2]
[361902984,1747878634043,-430.0,0.00021917,2]
[361902985,1747878634054,-430.0,0.00021917,2]
[361902986,1747878634065,-452.1008991,0.00021917,2]
[361902987,1747878634075,-430.0,0.00021917,2]
[361902988,1747878634085,-460.87194085,0.00021917,2]
[361902989,1747878634095,-439.2976597,0.00021917,2]
[361902990,1747878634105,-456.83302784,0.00021917,2]
[361902991,1747878634115,-358.46811182,0.00021917,2]
[361902992,1747878634125,-437.93236832,0.00021917,2]
[361902993,1747878634135,-441.01213222,0.00021917,2]
[361902994,1747878634145,-435.60333154,0.00021917,2]
[361902995,1747878634155,-430.0,0.00021917,2]
[361902996,1747878634166,-439.46222963,0.00021917,2]
[361902997,1747878634181,-433.3080888,0.00021917,2]
[361902998,1747878634191,-434.1770799,0.00021917,2]
[361902999,1747878634201,-438.78188227,0.00021917,2]
[361903000,1747878634212,-430.0,0.00021917,2]
[361903001,1747878634221,-438.45145165,0.00021917,2]
[361903002,1747878634232,-432.97192138,0.00021917,2]
[361903003,1747878634397,-439.5401105,0.00021917,2]
[361903004,1747878634409,-437.86419368,0.00021917,2]
[361903005,1747878634420,-433.91685695,0.00021917,2]
[361903006,1747878634429,-430.0,0.00021917,2]
[361903007,1747878634439,-445.98327037,0.00021917,2]
[361903008,1747878634448,-436.69471931,0.00021917,2]
[361903009,1747878634458,-439.61389509,0.00021917,2]
[361903010,1747878634468,-430.0,0.00021917,2]
[361903011,1747878634479,-447.25625583,0.00021917,2]
[361903012,1747878634489,-430.0,0.00021917,2]
[361903013,1747878634500,-445.44612288,0.00021917,2]
[361903014,1747878634510,-1136.78,0.00021917,2]
[361903015,1747878634522,-404.72793934,0.00021917,2]
[361903016,1747878634532,-430.0,0.00021917,2]
[361903017,1747878634542,-464.27721144,0.00021917,2]
[361903018,1747878634553,-430.0,0.00021917,2]
[361903019,1747878634563,-430.0,0.00021917,2]
[361903020,1747878634573,-433.58193928,0.00021917,2]
[361903021,1747878634584,-434.72974763,0.00021917,2]
[361903022,1747878634595,-433.7326529,0.00021917,2]
[361903023,1747878634606,-433.95321482,0.00021917,2]
[361903024,1747878634617,-435.44412255,0.00021917,2]
[361903025,1747878634628,-437.73635029,0.00021917,2]
[361903026,1747878634638,-433.3292276,0.00021917,2]
[361903027,1747878634648,-436.50473051,0.00021917,2]
[361903028,1747878634658,-430.0,0.00021917,2]
[361903029,1747878634669,-443.15198106,0.00021917,2]
[361903030,1747878634678,-430.0,0.00021917,2]
[361903031,1747878634688,-433.25178523,0.00021917,2]
[361903032,1747878634698,-430.0,0.00021917,2]
[361903033,1747878634707,-436.4553481,0.00021917,2]
[361903034,1747878634717,-437.99747431,0.00021917,2]
[361903035,1747878634729,-151.9148204,0.00021917,2]
[361903036,1747878634738,-439.45771949,0.00021917,2]